lending/lending_fUSD_20260306
["ID","MTS","AMOUNT","RATE_DAILY","PERIOD"]
[407844601,1772826657700,-500.0,0.00045999,120]
[407844602,1772826657710,-151.0,0.00045999,120]
[407844603,1772826657719,-500.0,0.00045999,120]
[407844604,1772826657729,-500.0,0.00045999,120]
[407844605,1772826657739,-250.0,0.00045999,120]
[407844606,1772826657748,-151.0,0.00045999,120]
[407844607,1772826657759,-500.0,0.00045999,120]
[407844608,1772826657770,-164.904108,0.00045999,120]
[407844609,1772826657779,-151.0,0.00045999,120]
[407844610,1772826657789,-500.0,0.00045999,120]
[407844611,1772826657799,-500.0,0.00045999,120]
[407844612,1772826657809,-250.0,0.00045999,120]
[407844613,1772826657820,-151.0,0.00045999,120]
[407844614,1772826657830,-156.587,0.00045999,120]
[407844615,1772826657840,-500.0,0.00045999,120]
[407844616,1772826657850,-151.0,0.00045999,120]
[407844617,1772826657860,-500.0,0.00045999,120]
[407844618,1772826657870,-250.0,0.00045999,120]
[407844619,1772826657891,-151.0,0.00045999,120]
[407844620,1772826657902,-162.380719,0.00045999,120]
[407844621,1772826657912,-1357.0,0.00045999,120]
[407844622,1772826657923,-500.0,0.00045999,120]
[407844623,1772826657934,-1000.0,0.00045999,120]
[407844624,1772826657945,-151.0,0.00045999,120]
[407844625,1772826657955,-1357.0,0.00045999,120]
[407844626,1772826657965,-500.0,0.00045999,120]
[407844627,1772826657974,-1000.0,0.00045999,120]
[407844628,1772826657985,-250.0,0.00045999,120]
[407844629,1772826657996,-168.3888056,0.00045999,120]
[407844630,1772826658008,-151.0,0.00045999,120]
[407844631,1772826658019,-1357.0,0.00045999,120]
[407844632,1772826658031,-500.0,0.00045999,120]
[407844633,1772826658043,-1000.0,0.00045999,120]
[407844634,1772826658053,-250.0,0.00045999,120]
[407844635,1772826658064,-174.61919141,0.00045999,120]
[407844636,1772826658078,-1357.0,0.00045999,120]
[407844637,1772826658088,-1000.0,0.00045999,120]
[407844638,1772826658099,-500.0,0.00045999,120]
[407844639,1772826658109,-250.0,0.00045999,120]
[407844640,1772826658121,-250.0,0.00045999,120]
[407844641,1772826658133,-181.08010149,0.00045999,120]
[407844642,1772826658143,-224.62477326,0.00045999,120]
[407844643,1772826658154,-1000.0,0.00045999,120]
[407844644,1772826658163,-500.0,0.00045999,120]
[407844645,1772826658173,-500.0,0.00045999,120]
[407844646,1772826658183,-151.0,0.00045999,120]
[407844647,1772826658192,-250.0,0.00045999,120]
[407844648,1772826658203,-187.78006525,0.00045999,120]
[407844649,1772826658212,-1000.0,0.00045999,120]
[407844650,1772826658222,-500.0,0.00045999,120]
[407844651,1772826658232,-250.0,0.00045999,120]
[407844652,1772826658242,-194.72792766,0.00045999,120]
[407844653,1772826658252,-500.0,0.00045999,120]
[407844654,1772826658262,-1000.0,0.00045999,120]
[407844655,1772826658272,-500.0,0.00045999,120]
[407844656,1772826658281,-250.0,0.00045999,120]
[407844657,1772826658291,-151.0,0.00045999,120]
[407844658,1772826658301,-201.93286098,0.00045999,120]
[407844659,1772826658311,-518.5,0.00045999,120]
[407844660,1772826658320,-1000.0,0.00045999,120]
[407844661,1772826658330,-500.0,0.00045999,120]
[407844662,1772826658341,-151.0,0.00045999,120]
[407844663,1772826658350,-250.0,0.00045999,120]
[407844664,1772826658360,-537.6845,0.00045999,120]
[407844665,1772826658370,-1000.0,0.00045999,120]
[407844666,1772826658380,-500.0,0.00045999,120]
[407844667,1772826658390,-250.0,0.00045999,120]
[407844668,1772826658399,-151.0,0.00045999,120]
[407844669,1772826658410,-557.5788265,0.00045999,120]
[407844670,1772826658419,-500.0,0.00045999,120]
[407844671,1772826658429,-500.0,0.00045999,120]
[407844672,1772826658438,-250.0,0.00045999,120]
[407844673,1772826658448,-500.0,0.00045999,120]
[407844674,1772826658457,-518.5,0.00045999,120]
[407844675,1772826658467,-500.0,0.00045999,120]
[407844676,1772826658476,-151.0,0.00045999,120]
[407844677,1772826658485,-250.0,0.00045999,120]
[407844678,1772826658494,-500.0,0.00045999,120]
[407844679,1772826658503,-537.6845,0.00045999,120]
[407844680,1772826658513,-257.8514,0.00045999,120]
[407844681,1772826658522,-500.0,0.00045999,120]
[407844682,1772826658531,-250.0,0.00045999,120]
[407844683,1772826658540,-500.0,0.00045999,120]
[407844684,1772826658550,-170.0,0.00045999,90]
[407844685,1772826658559,-557.5788265,0.00045999,120]
[407844686,1772826658568,-500.0,0.00045999,120]
[407844687,1772826658577,-255.39371409,0.00045999,120]
[407844688,1772826658587,-176.29,0.00045999,90]
[407844689,1772826658597,-578.20924308,0.00045999,120]
[407844690,1772826658606,-182.81273,0.00045999,90]
[407844691,1772826658616,-255.75987188,0.00045999,2]
[407844692,1772826658625,-52491.86230213,0.00046,10]
[407844693,1772826658636,-1000.0,0.00046,120]
[407844694,1772826658647,-1000.0,0.00046,120]
[407844695,1772826658666,-1000.0,0.00046,120]
[407844696,1772826658677,-1000.0,0.00046,120]
[407844697,1772826658687,-1040.52835704,0.00046,120]
[407844698,1772826658697,-7153.36203362,0.00046,120]
[407844699,1772826658707,-805.34024522,0.00046,120]
[407844700,1772826658717,-20100.0,0.00046,2]
[407844701,1772826658727,-17458.55839771,0.00046,120]
[407844702,1772826658737,-1578.93735283,0.00046,30]
[407844703,1772826658746,-550.0,0.00046,30]
[407844704,1772826658755,-1100.0,0.00046,30]
[407844705,1772826658765,-200.0,0.00046,10]
[407844706,1772826658776,-150.0,0.00046,32]
[407844707,1772826658786,-150.0,0.00046,32]
[407844708,1772826658796,-298.0,0.00046,120]
[407844709,1772826658805,-150.0,0.00046,79]
[407844710,1772826658815,-300.0,0.00046,30]
[407844711,1772826658824,-152.0,0.00046,30]
[407844712,1772826658834,-161.1,0.00046,96]
[407844713,1772826658843,-190.64,0.00046,53]
[407844714,1772826658853,-190.64,0.00046,53]
[407844715,1772826658862,-200.0,0.00046,29]
[407844716,1772826658873,-500.0,0.00046,120]
[407844717,1772826658882,-368.80452122,0.00046,2]
[407844718,1772826658892,-746.0,0.00046027,120]
[407844719,1772826658902,-150.0,0.00046029,120]
[407844720,1772826658912,-150.0,0.00046029,120]
[407844721,1772826658921,-151.65,0.00046033,120]
[407844722,1772826658930,-151.37,0.0004605,120]
[407844723,1772826658940,-847.0,0.00046054,16]
[407844724,1772826658949,-2803.0,0.00046054,16]
[407844725,1772826658958,-1000.0,0.00046054,120]
[407844726,1772826658968,-1000.0,0.00046054,120]
[407844727,1772826658977,-1000.0,0.00046054,120]
[407844728,1772826658990,-1000.0,0.00046054,120]
[407844729,1772826659003,-1040.52835704,0.00046054,120]
[407844730,1772826659013,-6432.51403889,0.00046073,111]
[407844731,1772826659023,-160.0,0.00046074,16]
[407844732,1772826659032,-1042.7,0.000461,120]
[407844733,1772826659043,-28295.41966609,0.000461,120]
[407844734,1772826659053,-150.0,0.00046109,120]
[407844735,1772826659063,-1508.76706407,0.00046129,10]
[407844736,1772826659073,-151.65,0.00046133,120]
[407844737,1772826659083,-5800.0,0.00046135,14]
[407844738,1772826659092,-156.4697347,0.00046141,2]
[407844739,1772826659101,-5800.0,0.00046143,14]
[407844740,1772826659111,-150.0,0.00046143,10]
[407844741,1772826659120,-150.0,0.00046143,10]
[407844742,1772826659129,-150.0,0.00046143,10]
[407844743,1772826659139,-150.0,0.00046143,10]
[407844744,1772826659148,-150.0,0.00046143,10]
[407844745,1772826659157,-150.0,0.00046143,10]
[407844746,1772826659166,-150.0,0.00046143,10]
[407844747,1772826659175,-150.0,0.00046143,10]
[407844748,1772826659185,-150.0,0.00046143,10]
[407844749,1772826659194,-150.0,0.00046143,10]
[407844750,1772826659203,-150.0,0.00046143,10]
[407844751,1772826659213,-150.0,0.00046143,10]
[407844752,1772826659222,-150.0,0.00046143,10]
[407844753,1772826659232,-150.0,0.00046143,10]
[407844754,1772826659241,-150.0,0.00046143,10]
[407844755,1772826659250,-150.0,0.00046143,10]
[407844756,1772826659259,-150.0,0.00046143,10]
[407844757,1772826659268,-150.0,0.00046143,10]
[407844758,1772826659277,-150.0,0.00046143,10]
[407844759,1772826659286,-150.0,0.00046143,10]
[407844760,1772826659295,-273.0,0.00046143,10]
[407844761,1772826659304,-151.0,0.00046143,10]
[407844762,1772826659313,-151.0,0.00046143,10]
[407844763,1772826659323,-151.0,0.00046143,10]
[407844764,1772826659332,-151.0,0.00046143,10]
[407844765,1772826659341,-151.0,0.00046143,10]
[407844766,1772826659351,-151.0,0.00046143,10]
[407844767,1772826659360,-151.0,0.00046143,10]
[407844768,1772826659369,-151.0,0.00046143,10]
[407844769,1772826659378,-151.0,0.00046143,10]
[407844770,1772826659391,-151.0,0.00046143,10]
[407844771,1772826659400,-151.0,0.00046143,10]
[407844772,1772826659409,-151.0,0.00046143,10]
[407844773,1772826659420,-151.0,0.00046143,10]
[407844774,1772826659429,-151.0,0.00046143,10]
[407844775,1772826659438,-151.0,0.00046143,10]
[407844776,1772826659447,-151.0,0.00046143,10]
[407844777,1772826659456,-151.0,0.00046143,10]
[407844778,1772826659466,-151.0,0.00046143,10]
[407844779,1772826659475,-151.0,0.00046143,10]
[407844780,1772826659484,-151.0,0.00046143,10]
[407844781,1772826659493,-151.0,0.00046143,10]
[407844782,1772826659502,-151.0,0.00046143,10]
[407844783,1772826659511,-151.0,0.00046143,10]
[407844784,1772826659521,-151.0,0.00046143,10]
[407844785,1772826659531,-151.0,0.00046143,10]
[407844786,1772826659540,-151.0,0.00046143,10]
[407844787,1772826659556,-151.0,0.00046143,10]
[407844788,1772826659565,-151.0,0.00046143,10]
[407844789,1772826659574,-151.0,0.00046143,10]
[407844790,1772826659583,-151.0,0.00046143,10]
[407844791,1772826659592,-151.0,0.00046143,10]
[407844792,1772826659601,-151.0,0.00046143,10]
[407844793,1772826659610,-151.0,0.00046143,10]
[407844794,1772826659619,-151.0,0.00046143,10]
[407844795,1772826659629,-151.0,0.00046143,10]
[407844796,1772826659638,-151.0,0.00046143,10]
[407844797,1772826659647,-151.0,0.00046143,10]
[407844798,1772826659657,-151.0,0.00046143,10]
[407844799,1772826659667,-151.0,0.00046143,10]
[407844800,1772826659677,-151.0,0.00046143,10]
[407844801,1772826659687,-151.0,0.00046143,10]
[407844802,1772826659697,-151.0,0.00046143,10]
[407844803,1772826659708,-151.0,0.00046143,10]
[407844804,1772826659717,-151.0,0.00046143,10]
[407844805,1772826659727,-151.0,0.00046143,10]
[407844806,1772826659737,-151.0,0.00046143,10]
[407844807,1772826659746,-151.0,0.00046143,10]
[407844808,1772826659755,-151.0,0.00046143,10]
[407844809,1772826659765,-151.0,0.00046143,10]
[407844810,1772826659775,-151.0,0.00046143,10]
[407844811,1772826659784,-151.0,0.00046143,10]
[407844812,1772826659794,-151.0,0.00046143,10]
[407844813,1772826659804,-151.0,0.00046143,10]
[407844814,1772826659814,-151.0,0.00046143,10]
[407844815,1772826659824,-151.0,0.00046143,10]
[407844816,1772826659833,-212.0,0.00046143,10]
[407844817,1772826659843,-151.37,0.0004615,120]
[407844818,1772826659852,-384.37849507,0.00046172,120]
[407844819,1772826659863,-150.0,0.00046174,120]
[407844820,1772826659873,-156.452103,0.00046214,7]
[407844821,1772826659884,-2936.064172,0.00046214,7]
[407844822,1772826659895,-1487.655051,0.00046214,7]
[407844823,1772826659905,-741.305594,0.00046214,120]
[407844824,1772826659914,-850.98095523,0.00046214,120]
[407844825,1772826659924,-151.65,0.00046233,120]
[407844826,1772826659933,-151.37,0.0004625,120]
[407844827,1772826659943,-7408.24,0.0004625,120]
[407844828,1772826659952,-150.0,0.00046262,120]
[407844829,1772826659961,-372.07016667,0.0004628,3]
[407844830,1772826659972,-831.15412963,0.000463,120]
[407844831,1772826659981,-500.0,0.00046301,120]
[407844832,1772826659991,-500.0,0.00046301,120]
[407844833,1772826660003,-500.0,0.00046301,120]
[407844834,1772826660013,-500.0,0.00046301,120]
[407844835,1772826660022,-500.0,0.00046301,120]
[407844836,1772826660032,-500.0,0.00046301,120]
[407844837,1772826660043,-500.0,0.00046301,120]
[407844838,1772826660053,-500.0,0.00046301,120]
[407844839,1772826660063,-500.0,0.00046301,120]
[407844840,1772826660075,-500.0,0.00046301,120]
[407844841,1772826660085,-500.0,0.00046301,120]
[407844842,1772826660094,-190.2128,0.00046301,120]
[407844843,1772826660103,-663.8582,0.00046301,120]
[407844844,1772826660113,-663.8582,0.00046301,120]
[407844845,1772826660123,-663.8582,0.00046301,120]
[407844846,1772826660132,-663.8582,0.00046301,120]
[407844847,1772826660142,-663.8582,0.00046301,120]
[407844848,1772826660151,-663.8582,0.00046301,120]
[407844849,1772826660161,-663.8582,0.00046301,120]
[407844850,1772826660170,-663.8582,0.00046301,120]
[407844851,1772826660179,-663.8582,0.00046301,120]
[407844852,1772826660189,-663.8582,0.00046301,120]
[407844853,1772826660199,-663.8582,0.00046301,120]
[407844854,1772826660208,-663.8582,0.00046301,120]
[407844855,1772826660217,-663.8582,0.00046301,120]
[407844856,1772826660227,-663.8582,0.00046301,120]
[407844857,1772826660236,-663.8582,0.00046301,120]
[407844858,1772826660245,-663.8582,0.00046301,120]
[407844859,1772826660254,-663.8582,0.00046301,120]
[407844860,1772826660264,-663.8582,0.00046301,120]
[407844861,1772826660274,-663.8582,0.00046301,120]
[407844862,1772826660285,-663.85898494,0.00046301,120]
[407844863,1772826660295,-500.0,0.00046301,120]
[407844864,1772826660305,-746.0,0.00046301,120]
[407844865,1772826660317,-150.0,0.00046329,30]
[407844866,1772826660327,-150.0,0.00046329,30]
[407844867,1772826660336,-150.0,0.00046329,30]
[407844868,1772826660346,-1341.0,0.00046331,2]
[407844869,1772826660356,-3502.0,0.00046331,2]
[407844870,1772826660365,-619.0,0.00046331,2]
[407844871,1772826660375,-1011.794,0.00046331,2]
[407844872,1772826660384,-1212.0,0.00046331,2]
[407844873,1772826660395,-5990.0,0.00046331,2]
[407844874,1772826660405,-414.0,0.00046331,2]
[407844875,1772826660417,-151.65,0.00046333,120]
[407844876,1772826660428,-500.0,0.00046349,120]
[407844877,1772826660437,-151.37,0.0004635,120]
[407844878,1772826660447,-170299.0,0.0004635,60]
[407844879,1772826660458,-151.0,0.0004635,120]
[407844880,1772826660469,-222.139838,0.0004635,120]
[407844881,1772826660480,-222.139838,0.0004635,120]
[407844882,1772826660490,-222.139838,0.0004635,120]
[407844883,1772826660500,-222.139838,0.0004635,120]
[407844884,1772826660510,-151.0,0.0004635,120]
[407844885,1772826660519,-151.0,0.0004635,120]
[407844886,1772826660529,-151.0,0.0004635,120]
[407844887,1772826660540,-200.0,0.0004635,120]
[407844888,1772826660551,-200.0,0.0004635,120]
[407844889,1772826660560,-200.0,0.0004635,120]
[407844890,1772826660569,-200.0,0.0004635,120]
[407844891,1772826660579,-1236.417622,0.0004635,120]
[407844892,1772826660589,-1236.417622,0.0004635,120]
[407844893,1772826660598,-1236.417622,0.0004635,120]
[407844894,1772826660608,-1236.417622,0.0004635,120]
[407844895,1772826660618,-151.0,0.0004635,120]
[407844896,1772826660628,-151.0,0.0004635,120]
[407844897,1772826660640,-151.0,0.0004635,120]
[407844898,1772826660650,-151.0,0.0004635,120]
[407844899,1772826660659,-151.0,0.0004635,120]
[407844900,1772826660669,-151.0,0.0004635,120]
[407844901,1772826660679,-151.0,0.0004635,120]
[407844902,1772826660688,-151.0,0.0004635,120]
[407844903,1772826660697,-151.000007,0.0004635,120]
[407844904,1772826660706,-151.0,0.0004635,120]
[407844905,1772826660715,-151.0,0.0004635,120]
[407844906,1772826660724,-151.0,0.0004635,120]
[407844907,1772826660734,-151.0,0.0004635,120]
[407844908,1772826660744,-203.661833,0.0004635,120]
[407844909,1772826660753,-151.0,0.0004635,120]
[407844910,1772826660762,-203.661833,0.0004635,120]
[407844911,1772826660772,-151.450532,0.0004635,120]
[407844912,1772826660781,-199.591417,0.0004635,120]
[407844913,1772826660791,-151.0,0.0004635,120]
[407844914,1772826660800,-203.661833,0.0004635,120]
[407844915,1772826660810,-203.661833,0.0004635,120]
[407844916,1772826660819,-276.169746,0.0004635,120]
[407844917,1772826660829,-182.336807,0.0004635,120]
[407844918,1772826660838,-151.0,0.0004635,120]
[407844919,1772826660848,-4252.23317,0.0004635,120]
[407844920,1772826660857,-4252.23317,0.0004635,120]
[407844921,1772826661035,-151.0,0.0004635,120]
[407844922,1772826661046,-492.055808,0.0004635,120]
[407844923,1772826661055,-151.0,0.0004635,120]
[407844924,1772826661065,-4252.23317,0.0004635,120]
[407844925,1772826661077,-492.055808,0.0004635,120]
[407844926,1772826661086,-4252.23317,0.0004635,120]
[407844927,1772826661096,-151.0,0.0004635,120]
[407844928,1772826661105,-492.055808,0.0004635,120]
[407844929,1772826661114,-492.055808,0.0004635,120]
[407844930,1772826661124,-151.0,0.0004635,120]
[407844931,1772826661134,-340.992679,0.0004635,120]
[407844932,1772826661144,-340.992679,0.0004635,120]
[407844933,1772826661154,-151.0,0.0004635,120]
[407844934,1772826661163,-340.992679,0.0004635,120]
[407844935,1772826661173,-151.0,0.0004635,120]
[407844936,1772826661182,-340.992679,0.0004635,120]
[407844937,1772826661192,-151.0,0.0004635,120]
[407844938,1772826661202,-300.795903,0.0004635,120]
[407844939,1772826661213,-225.482149,0.0004635,28]
[407844940,1772826661223,-225.482149,0.0004635,28]
[407844941,1772826661234,-225.482149,0.0004635,28]
[407844942,1772826661246,-225.482149,0.0004635,28]
[407844943,1772826661257,-151.0,0.0004635,120]
[407844944,1772826661266,-151.0,0.0004635,120]
[407844945,1772826661276,-151.0,0.0004635,120]
[407844946,1772826661286,-151.0,0.0004635,120]
[407844947,1772826661295,-151.0,0.0004635,120]
[407844948,1772826661305,-150.0,0.00046358,120]
[407844949,1772826661315,-700.0,0.0004637,3]
[407844950,1772826661325,-700.0,0.0004637,3]
[407844951,1772826661335,-748.2883638,0.00046388,30]
[407844952,1772826661345,-314.40591822,0.00046388,30]
[407844953,1772826661354,-747.03005659,0.00046388,30]
[407844954,1772826661364,-159.10106474,0.00046389,120]
[407844955,1772826661374,-156.4697347,0.00046415,2]
[407844956,1772826661384,-150.0,0.00046432,120]
[407844957,1772826661396,-151.65,0.00046433,120]
[407844958,1772826661405,-151.37,0.0004645,120]
[407844959,1772826661415,-150.0,0.00046482,120]
[407844960,1772826661424,-150.0,0.00046495,120]
[407844961,1772826661435,-233.72718804,0.00046499,120]
[407844962,1772826661444,-70172.4905861,0.000465,120]
[407844963,1772826661454,-298.0,0.000465,120]
[407844964,1772826661464,-151.0,0.000465,120]
[407844965,1772826661474,-151.0,0.000465,120]
[407844966,1772826661483,-191.13408,0.000465,120]
[407844967,1772826661493,-151.0,0.000465,120]
[407844968,1772826661502,-151.0,0.000465,120]
[407844969,1772826661512,-151.0,0.000465,120]
[407844970,1772826661522,-151.0,0.000465,120]
[407844971,1772826661531,-151.0,0.000465,120]
[407844972,1772826661541,-151.0,0.000465,120]
[407844973,1772826661550,-159.588177,0.000465,120]
[407844974,1772826661560,-177.699811,0.000465,120]
[407844975,1772826661569,-400.523151,0.000465,120]
[407844976,1772826661578,-400.523151,0.000465,120]
[407844977,1772826661587,-400.523151,0.000465,120]
[407844978,1772826661597,-400.523151,0.000465,120]
[407844979,1772826661606,-151.0,0.000465,120]
[407844980,1772826661616,-151.0,0.000465,120]
[407844981,1772826661625,-151.0,0.000465,120]
[407844982,1772826661635,-230.880738,0.000465,120]
[407844983,1772826661645,-230.510713,0.000465,120]
[407844984,1772826661655,-151.0,0.000465,120]
[407844985,1772826661664,-151.0,0.000465,120]
[407844986,1772826661673,-279.245746,0.000465,120]
[407844987,1772826661683,-1447.985089,0.000465,120]
[407844988,1772826661692,-151.0,0.000465,120]
[407844989,1772826661702,-279.245746,0.000465,120]
[407844990,1772826661712,-151.0,0.000465,120]
[407844991,1772826661722,-1447.985089,0.000465,120]
[407844992,1772826661731,-151.0,0.000465,120]
[407844993,1772826661741,-279.245746,0.000465,120]
[407844994,1772826661750,-1447.985089,0.000465,120]
[407844995,1772826661759,-151.0,0.000465,120]
[407844996,1772826661769,-279.245746,0.000465,120]
[407844997,1772826661778,-151.0,0.000465,120]
[407844998,1772826661788,-1447.985089,0.000465,120]
[407844999,1772826661798,-151.0,0.000465,120]
[407845000,1772826661808,-151.0,0.000465,120]
[407845001,1772826661817,-151.0,0.000465,120]
[407845002,1772826661827,-151.0,0.000465,120]
[407845003,1772826661836,-151.0,0.000465,120]
[407845004,1772826661846,-151.0,0.000465,120]
[407845005,1772826661856,-500.0,0.000465,120]
[407845006,1772826661866,-160.77654311,0.00046521,30]
[407845007,1772826661875,-151.65,0.00046533,120]
[407845008,1772826661885,-11378.63,0.00046533,7]
[407845009,1772826661896,-151.37,0.0004655,120]
[407845010,1772826661906,-150.0,0.00046559,120]
[407845011,1772826661916,-894.94931021,0.00046575,120]
[407845012,1772826661925,-746.0,0.00046575,120]
[407845013,1772826661934,-1436.089081,0.00046575,120]
[407845014,1772826661944,-1436.089081,0.00046575,120]
[407845015,1772826661955,-1436.089081,0.00046575,120]
[407845016,1772826661964,-1436.089081,0.00046575,120]
[407845017,1772826661973,-400.0,0.00046575,120]
[407845018,1772826661982,-400.0,0.00046575,120]
[407845019,1772826661991,-305.059999,0.000466,20]
[407845020,1772826662003,-152.0,0.000466,120]
[407845021,1772826662012,-154.0,0.000466,120]
[407845022,1772826662021,-219.04510115,0.00046609,120]
[407845023,1772826662030,-298.0,0.00046614,120]
[407845024,1772826662042,-298.0,0.00046614,120]
[407845025,1772826662051,-151.65,0.00046633,120]
[407845026,1772826662061,-941.64402521,0.00046643,120]
[407845027,1772826662071,-384.37849507,0.00046643,120]
[407845028,1772826662080,-152.0,0.00046646,9]
[407845029,1772826662089,-151.37,0.0004665,120]
[407845030,1772826662098,-150.0,0.00046652,120]
[407845031,1772826662107,-150.0,0.00046656,120]
[407845032,1772826662118,-278.3076083,0.00046685,120]
[407845033,1772826662127,-156.4697347,0.00046688,2]
[407845034,1772826662137,-600.0,0.000467,17]
[407845035,1772826662147,-500.0,0.00046712,120]
[407845036,1772826662157,-151.65,0.00046733,120]
[407845037,1772826662166,-151.37,0.0004675,120]
[407845038,1772826662176,-500.0,0.00046767,30]
[407845039,1772826662185,-500.0,0.00046767,30]
[407845040,1772826662195,-500.0,0.00046767,30]
[407845041,1772826662205,-278.3076083,0.00046779,120]
[407845042,1772826662216,-278.30760829,0.00046781,120]
[407845043,1772826662226,-368.77975253,0.000468,120]
[407845044,1772826662237,-217.55636582,0.000468,120]
[407845045,1772826662248,-600.0,0.000468,17]
[407845046,1772826662258,-160.14664636,0.00046802,2]
[407845047,1772826662267,-206.0,0.00046816,120]
[407845048,1772826662277,-1042.7,0.0004682,120]
[407845049,1772826662286,-151.65,0.00046833,120]
[407845050,1772826662295,-746.0,0.00046849,120]
[407845051,1772826662305,-151.37,0.0004685,120]
[407845052,1772826662316,-236.46034477,0.00046876,120]
[407845053,1772826662325,-278.3076083,0.0004688,120]
[407845054,1772826662335,-150.0,0.0004688,120]
[407845055,1772826662345,-945.17,0.00046885,120]
[407845056,1772826662355,-456.0,0.00046886,120]
[407845057,1772826662364,-181673.87825341,0.000469,60]
[407845058,1772826662374,-394.84966852,0.000469,120]
[407845059,1772826662383,-12873.124,0.000469,120]
[407845060,1772826662392,-12873.124,0.000469,120]
[407845061,1772826662402,-12873.12,0.000469,120]
[407845062,1772826662411,-963.664,0.000469,90]
[407845063,1772826662421,-161.35713409,0.000469,120]
[407845064,1772826662431,-213.62871625,0.000469,90]
[407845065,1772826662440,-170.76604611,0.000469,90]
[407845066,1772826662450,-305.17663862,0.000469,120]
[407845067,1772826662460,-1806.18849652,0.000469,120]
[407845068,1772826662470,-174.335232,0.000469,120]
[407845069,1772826662479,-189.021769,0.000469,120]
[407845070,1772826662489,-151.0,0.000469,120]
[407845071,1772826662498,-151.0,0.000469,120]
[407845072,1772826662507,-151.0,0.000469,120]
[407845073,1772826662516,-176.753931,0.000469,120]
[407845074,1772826662525,-176.753931,0.000469,120]
[407845075,1772826662534,-151.0,0.000469,2]
[407845076,1772826662543,-176.753931,0.000469,120]
[407845077,1772826662553,-176.753931,0.000469,120]
[407845078,1772826662562,-151.0,0.000469,7]
[407845079,1772826662571,-151.0,0.000469,7]
[407845080,1772826662581,-151.0,0.000469,7]
[407845081,1772826662590,-151.0,0.000469,7]
[407845082,1772826662599,-600.0,0.000469,17]
[407845083,1772826662609,-48325.66,0.00046914,9]
[407845084,1772826662619,-372.07016667,0.00046924,4]
[407845085,1772826662628,-151.65,0.00046933,120]
[407845086,1772826662637,-218.61207107,0.00046948,120]
[407845087,1772826662648,-151.42,0.0004695,120]
[407845088,1772826662657,-150.0,0.00046956,120]
[407845089,1772826662667,-156.4697347,0.00046962,2]
[407845090,1772826662677,-213.0,0.0004698,30]
[407845091,1772826662688,-151.0,0.00046997,120]
[407845092,1772826662698,-1017.28987722,0.00046998,120]
[407845093,1772826662707,-50000.0,0.00047,69]
[407845094,1772826662716,-200.0,0.00047,120]
[407845095,1772826662726,-6737.0,0.00047,120]
[407845096,1772826662735,-13172.52878,0.00047,120]
[407845097,1772826662744,-298.0,0.00047,120]
[407845098,1772826662754,-151.0,0.00047,120]
[407845099,1772826662763,-151.0,0.00047,120]
[407845100,1772826662773,-151.0,0.00047,120]